[Event "*** Titled Tuesday Blitz"]
[Site "Chess.com"]
[Date "2020.11.24"]
[Round "4"]
[White "cstevens1"]
[Black "grzechu96"]
[Result "1-0"]
[WhiteElo "2586"]
[BlackElo "2685"]
[TimeControl "180+1"]
[EndTime "10:56:24 PST"]
[Termination "cstevens1 won on time"]

1. e4 {[%clk 0:03:00.9]} 1... c5 {[%clk 0:02:59.4]} 2. Nf3 {[%clk 0:03:00.7]}
2... d6 {[%clk 0:02:52.1]} 3. d4 {[%clk 0:02:59.8]} 3... cxd4 {[%clk 0:02:53]}
4. Nxd4 {[%clk 0:03:00.7]} 4... a6 {[%clk 0:02:53.3]} 5. f3 {[%clk 0:03:00.9]}
5... e6 {[%clk 0:02:53]} 6. c4 {[%clk 0:03:01.1]} 6... Nf6 {[%clk 0:02:52.1]} 7.
Nc3 {[%clk 0:03:01.6]} 7... Be7 {[%clk 0:02:52.1]} 8. Be3 {[%clk 0:03:02.1]}
8... O-O {[%clk 0:02:52.8]} 9. Qd2 {[%clk 0:03:01.9]} 9... b6 {[%clk 0:02:52.6]}
10. Be2 {[%clk 0:03:02.2]} 10... Bb7 {[%clk 0:02:53]} 11. O-O {[%clk 0:03:02.5]}
11... Nbd7 {[%clk 0:02:52.9]} 12. Rfc1 {[%clk 0:03:01]} 12... Rc8 {[%clk
0:02:50.6]} 13. Bf1 {[%clk 0:02:52.9]} 13... Qc7 {[%clk 0:02:50.1]} 14. a4
{[%clk 0:02:52.2]} 14... Rb8 {[%clk 0:02:45.7]} 15. b4 {[%clk 0:02:49.6]} 15...
Rfc8 {[%clk 0:02:33.8]} 16. Nb3 {[%clk 0:02:48.6]} 16... d5 {[%clk 0:02:28]} 17.
exd5 {[%clk 0:02:34.5]} 17... Bxb4 {[%clk 0:02:24.4]} 18. dxe6 {[%clk
0:02:34.2]} 18... fxe6 {[%clk 0:02:24.4]} 19. Qf2 {[%clk 0:02:30.6]} 19... Bd6
{[%clk 0:02:13.4]} 20. Qh4 {[%clk 0:02:30.6]} 20... Ne5 {[%clk 0:02:01.6]} 21.
a5 {[%clk 0:02:28.3]} 21... bxa5 {[%clk 0:01:11.6]} 22. Nd4 {[%clk 0:01:59.9]}
22... Bc5 {[%clk 0:00:46.3]} 23. Kh1 {[%clk 0:01:53.1]} 23... Ng6 {[%clk
0:00:35.4]} 24. Qf2 {[%clk 0:01:52.3]} 24... e5 {[%clk 0:00:30.1]} 25. Nf5
{[%clk 0:01:26.8]} 25... Bxe3 {[%clk 0:00:30.3]} 26. Qxe3 {[%clk 0:01:20.3]}
26... e4 {[%clk 0:00:29]} 27. fxe4 {[%clk 0:01:04.5]} 27... Qe5 {[%clk 0:00:29]}
28. Qd4 {[%clk 0:00:50.7]} 28... Qxd4 {[%clk 0:00:16.5]} 29. Nxd4 {[%clk
0:00:51.6]} 29... Nxe4 {[%clk 0:00:14.5]} 30. Nxe4 {[%clk 0:00:51]} 30... Bxe4
{[%clk 0:00:15.4]} 31. Rxa5 {[%clk 0:00:51]} 31... Nf4 {[%clk 0:00:09.7]} 32.
Ra2 {[%clk 0:00:32.7]} 32... Rb4 {[%clk 0:00:08.5]} 33. Kg1 {[%clk 0:00:28]}
33... Bd3 {[%clk 0:00:08.3]} 34. Rxa6 {[%clk 0:00:20.8]} 34... Bxf1 {[%clk
0:00:02.6]} 35. Rxf1 {[%clk 0:00:21.7]} 35... Rcxc4 {[%clk 0:00:02.1]} 36. Rxf4
{[%clk 0:00:20.1]} 36... h6 {[%clk 0:00:02.5]} 37. Rd6 {[%clk 0:00:17.6]} 37...
Kh7 {[%clk 0:00:02.8]} 38. h3 {[%clk 0:00:17.8]} 38... Ra4 {[%clk 0:00:02.7]}
39. Rd7 {[%clk 0:00:17.9]} 39... Rcb4 {[%clk 0:00:03.2]} 40. Kh2 {[%clk
0:00:17.3]} 40... h5 {[%clk 0:00:02.5]} 41. Re4 {[%clk 0:00:16.3]} 41... Rc4
{[%clk 0:00:02.4]} 42. Rd5 {[%clk 0:00:14.6]} 42... Rcb4 {[%clk 0:00:02.4]} 43.
Rxh5+ {[%clk 0:00:14.1]} 43... Kg6 {[%clk 0:00:02.9]} 44. Rd5 {[%clk 0:00:15]}
44... Kf7 {[%clk 0:00:03.5]} 45. Rg4 {[%clk 0:00:15]} 45... Rc4 {[%clk
0:00:03.2]} 46. Rd7+ {[%clk 0:00:14.9]} 46... Ke8 {[%clk 0:00:03.3]} 47. Rd5
{[%clk 0:00:12.6]} 47... Kf7 {[%clk 0:00:03.6]} 48. h4 {[%clk 0:00:11.8]} 48...
Rcb4 {[%clk 0:00:03.5]} 49. h5 {[%clk 0:00:11.2]} 49... Rc4 {[%clk 0:00:03.9]}
50. Kh3 {[%clk 0:00:10.7]} 50... Rcb4 {[%clk 0:00:03.8]} 51. Kh4 {[%clk
0:00:10.9]} 51... Rc4 {[%clk 0:00:03.9]} 52. g3 {[%clk 0:00:10.5]} 52... Ra1
{[%clk 0:00:02.3]} 53. Kg5 {[%clk 0:00:09.6]} 53... Raa4 {[%clk 0:00:01.3]} 54.
Rf4+ {[%clk 0:00:09.5]} 54... Kg8 {[%clk 0:00:01.6]} 55. g4 {[%clk 0:00:08.2]}
55... Kh7 {[%clk 0:00:01.5]} 56. Re4 {[%clk 0:00:08.3]} 56... Ra6 {[%clk
0:00:01.7]} 57. Rd7 {[%clk 0:00:07.3]} 57... Ra5+ {[%clk 0:00:01.8]} 58. Kf4
{[%clk 0:00:06.8]} 58... Rd5 {[%clk 0:00:02]} 59. Rxd5 {[%clk 0:00:06.3]} 1-0

[Event "*** Titled Tuesday Blitz"]
[Site "Chess.com"]
[Date "2020.11.24"]
[Round "4"]
[White "nitpicker"]
[Black "yobdc"]
[Result "0-1"]
[WhiteElo "2279"]
[BlackElo "2454"]
[TimeControl "180+1"]
[EndTime "10:56:26 PST"]
[Termination "yobdc won by resignation"]

1. d4 {[%clk 0:03:00.9]} 1... g6 {[%clk 0:02:59.9]} 2. e4 {[%clk 0:02:59.9]}
2... Bg7 {[%clk 0:03:00.1]} 3. Nc3 {[%clk 0:03:00]} 3... d6 {[%clk 0:03:00.4]}
4. h3 {[%clk 0:02:58.4]} 4... a6 {[%clk 0:02:58.9]} 5. a4 {[%clk 0:02:57.7]}
5... Nc6 {[%clk 0:02:55.7]} 6. Nge2 {[%clk 0:02:57.4]} 6... Nf6 {[%clk
0:02:53.1]} 7. Be3 {[%clk 0:02:57]} 7... O-O {[%clk 0:02:52.9]} 8. g4 {[%clk
0:02:56.9]} 8... e5 {[%clk 0:02:53]} 9. Bg2 {[%clk 0:02:56.2]} 9... exd4 {[%clk
0:02:47.2]} 10. Nxd4 {[%clk 0:02:55.6]} 10... Nxd4 {[%clk 0:02:47.3]} 11. Bxd4
{[%clk 0:02:55.3]} 11... Re8 {[%clk 0:02:47.5]} 12. O-O {[%clk 0:02:49.1]} 12...
Bd7 {[%clk 0:02:45.3]} 13. Re1 {[%clk 0:02:44.9]} 13... Bc6 {[%clk 0:02:44.9]}
14. Qd3 {[%clk 0:02:40.7]} 14... Nd7 {[%clk 0:02:26.3]} 15. Bxg7 {[%clk
0:02:35.5]} 15... Kxg7 {[%clk 0:02:27.2]} 16. Nd5 {[%clk 0:02:33.1]} 16... Bxd5
{[%clk 0:02:18.6]} 17. Qxd5 {[%clk 0:02:31.4]} 17... Rb8 {[%clk 0:02:15.5]} 18.
g5 {[%clk 0:02:23.5]} 18... Re5 {[%clk 0:02:12.4]} 19. Qd4 {[%clk 0:02:22]}
19... Qxg5 {[%clk 0:02:08.9]} 20. Ra3 {[%clk 0:02:15.5]} 20... Kg8 {[%clk
0:02:00.5]} 21. Rg3 {[%clk 0:02:14.2]} 21... Qf4 {[%clk 0:01:54.1]} 22. Rg4
{[%clk 0:02:04.1]} 22... Qf6 {[%clk 0:01:52]} 23. f4 {[%clk 0:02:03.9]} 23...
Re7 {[%clk 0:01:51.9]} 24. Qc4 {[%clk 0:01:45.6]} 24... c6 {[%clk 0:01:36.4]}
25. Rf1 {[%clk 0:01:26.5]} 25... Qxb2 {[%clk 0:01:30.6]} 26. c3 {[%clk 0:01:25]}
26... Qb6+ {[%clk 0:01:27.2]} 27. Kh2 {[%clk 0:01:24.3]} 27... Qc5 {[%clk
0:01:27.5]} 28. Qd3 {[%clk 0:01:23.7]} 28... Rbe8 {[%clk 0:01:19.3]} 29. h4
{[%clk 0:01:23.2]} 29... Nf6 {[%clk 0:01:19.3]} 30. Rg5 {[%clk 0:01:21.8]} 30...
Qa3 {[%clk 0:01:04.2]} 31. e5 {[%clk 0:01:20.5]} 31... dxe5 {[%clk 0:00:56.8]}
32. fxe5 {[%clk 0:01:19.6]} 32... Nd7 {[%clk 0:00:50.2]} 33. e6 {[%clk
0:01:17.4]} 33... Nf8 {[%clk 0:00:27.1]} 34. exf7+ {[%clk 0:01:09.3]} 34... Rxf7
{[%clk 0:00:28]} 35. Rxf7 {[%clk 0:01:05]} 35... Kxf7 {[%clk 0:00:28.9]} 36. h5
{[%clk 0:01:03.9]} 36... Qe7 {[%clk 0:00:28]} 37. hxg6+ {[%clk 0:01:03.3]} 37...
hxg6 {[%clk 0:00:27.8]} 38. Rg3 {[%clk 0:01:00.4]} 38... Kg7 {[%clk 0:00:27]}
39. Rh3 {[%clk 0:00:56.7]} 39... Qe5+ {[%clk 0:00:26.6]} 40. Rg3 {[%clk
0:00:56.9]} 40... Re7 {[%clk 0:00:19.2]} 41. Bf3 {[%clk 0:00:53.3]} 41... Rd7
{[%clk 0:00:18.6]} 42. Qc2 {[%clk 0:00:46.9]} 42... Qe1 {[%clk 0:00:17.9]} 43.
Rg2 {[%clk 0:00:45.4]} 43... Qe5+ {[%clk 0:00:16.9]} 44. Rg3 {[%clk 0:00:44.2]}
44... Qe1 {[%clk 0:00:16.9]} 45. Rg2 {[%clk 0:00:44]} 45... Qh4+ {[%clk
0:00:16.7]} 46. Kg1 {[%clk 0:00:43.7]} 46... Re7 {[%clk 0:00:15.9]} 47. Rf2
{[%clk 0:00:36.2]} 47... Qg3+ {[%clk 0:00:15.5]} 48. Bg2 {[%clk 0:00:33.6]}
48... Re1+ {[%clk 0:00:14.7]} 49. Rf1 {[%clk 0:00:33.5]} 49... Qe3+ {[%clk
0:00:14.4]} 50. Kh2 {[%clk 0:00:32.7]} 50... Rxf1 {[%clk 0:00:14.5]} 51. Bxf1
{[%clk 0:00:32.6]} 51... Qf4+ {[%clk 0:00:14.6]} 52. Kg2 {[%clk 0:00:30.8]}
52... Nd7 {[%clk 0:00:13.7]} 53. Bd3 {[%clk 0:00:30]} 53... Ne5 {[%clk
0:00:13.6]} 54. Be4 {[%clk 0:00:30.3]} 54... Qg4+ {[%clk 0:00:13.2]} 55. Kf2
{[%clk 0:00:30.1]} 55... Qf4+ {[%clk 0:00:13.5]} 56. Kg2 {[%clk 0:00:29.9]}
56... Nc4 {[%clk 0:00:12.6]} 57. Qd3 {[%clk 0:00:28.7]} 57... Ne3+ {[%clk
0:00:12.5]} 58. Kg1 {[%clk 0:00:25.3]} 58... Qg3+ {[%clk 0:00:12]} 59. Kh1
{[%clk 0:00:25.7]} 59... Ng4 {[%clk 0:00:10.8]} 60. Qd7+ {[%clk 0:00:24.2]}
60... Kh6 {[%clk 0:00:09.5]} 61. Qd2+ {[%clk 0:00:23.8]} 61... Qe3 {[%clk
0:00:06.7]} 62. Qg2 {[%clk 0:00:20.8]} 62... Qxe4 {[%clk 0:00:04.3]} 63. Qxe4
{[%clk 0:00:19.4]} 63... Nf2+ {[%clk 0:00:04.6]} 64. Kg2 {[%clk 0:00:20.3]}
64... Nxe4 {[%clk 0:00:05.4]} 65. Kf3 {[%clk 0:00:21.2]} 65... Nxc3 {[%clk
0:00:05.8]} 66. Ke3 {[%clk 0:00:20.9]} 66... Nxa4 {[%clk 0:00:06.1]} 67. Kd3
{[%clk 0:00:21.8]} 67... g5 {[%clk 0:00:06.5]} 68. Kc4 {[%clk 0:00:22.7]} 68...
g4 {[%clk 0:00:07.1]} 69. Kb4 {[%clk 0:00:23.6]} 69... b5 {[%clk 0:00:07.3]} 70.
Ka5 {[%clk 0:00:23.3]} 70... g3 {[%clk 0:00:07.8]} 71. Kxa6 {[%clk 0:00:24.2]}
71... g2 {[%clk 0:00:08.3]} 72. Kb7 {[%clk 0:00:25]} 72... g1=Q {[%clk
0:00:08.7]} 73. Kxc6 {[%clk 0:00:25.9]} 73... Qc5+ {[%clk 0:00:08.7]} 0-1

[Event "*** Titled Tuesday Blitz"]
[Site "Chess.com"]
[Date "2020.11.24"]
[Round "4"]
[White "Sanan_Sjugirov"]
[Black "DenisQ"]
[Result "1/2-1/2"]
[WhiteElo "2917"]
[BlackElo "2672"]
[TimeControl "180+1"]
[EndTime "10:56:27 PST"]
[Termination "Game drawn by repetition"]

1. e4 {[%clk 0:03:00.9]} 1... c6 {[%clk 0:02:59]} 2. d4 {[%clk 0:02:59.7]} 2...
d5 {[%clk 0:02:59.9]} 3. e5 {[%clk 0:02:59.8]} 3... Bf5 {[%clk 0:02:53.3]} 4.
Nd2 {[%clk 0:02:59]} 4... e6 {[%clk 0:02:52.8]} 5. Nb3 {[%clk 0:02:58.7]} 5...
c5 {[%clk 0:02:51]} 6. dxc5 {[%clk 0:02:58.3]} 6... Bxc5 {[%clk 0:02:50.8]} 7.
Bb5+ {[%clk 0:02:57.6]} 7... Nc6 {[%clk 0:02:41.8]} 8. a4 {[%clk 0:02:54]} 8...
Bf8 {[%clk 0:01:52.8]} 9. Nd4 {[%clk 0:02:42]} 9... Ne7 {[%clk 0:01:52.3]} 10.
Bg5 {[%clk 0:02:26]} 10... Qc7 {[%clk 0:01:50.3]} 11. Bxe7 {[%clk 0:02:17.9]}
11... Bxe7 {[%clk 0:01:42]} 12. Nxf5 {[%clk 0:02:17]} 12... exf5 {[%clk
0:01:41.9]} 13. Nf3 {[%clk 0:02:10.2]} 13... Rd8 {[%clk 0:01:37.3]} 14. O-O
{[%clk 0:02:08]} 14... O-O {[%clk 0:01:37.3]} 15. Re1 {[%clk 0:02:07]} 15... Bc5
{[%clk 0:01:32.9]} 16. c3 {[%clk 0:01:45.7]} 16... a6 {[%clk 0:01:30.2]} 17.
Bxc6 {[%clk 0:01:36.1]} 17... bxc6 {[%clk 0:01:28]} 18. Qd3 {[%clk 0:01:33.7]}
18... Qa7 {[%clk 0:01:17]} 19. Re2 {[%clk 0:01:20.7]} 19... g6 {[%clk 0:01:17]}
20. b4 {[%clk 0:01:20.4]} 20... Be7 {[%clk 0:01:15.1]} 21. Nd4 {[%clk
0:01:13.3]} 21... Rc8 {[%clk 0:01:12.2]} 22. e6 {[%clk 0:01:01.6]} 22... c5
{[%clk 0:01:03.6]} 23. bxc5 {[%clk 0:00:55.8]} 23... Bxc5 {[%clk 0:01:03.1]} 24.
Rae1 {[%clk 0:00:49.6]} 24... Bxd4 {[%clk 0:01:01.4]} 25. cxd4 {[%clk 0:00:50]}
25... Rfe8 {[%clk 0:00:55.4]} 26. exf7+ {[%clk 0:00:23.6]} 26... Kxf7 {[%clk
0:00:56.3]} 27. Qf3 {[%clk 0:00:23.4]} 27... Qxd4 {[%clk 0:00:51.6]} 28. h3
{[%clk 0:00:17.9]} 28... Rxe2 {[%clk 0:00:47.7]} 29. Qxe2 {[%clk 0:00:17.2]}
29... Qe4 {[%clk 0:00:39.7]} 30. Qd2 {[%clk 0:00:14.8]} 30... Rc2 {[%clk
0:00:36.2]} 31. Qa5 {[%clk 0:00:13]} 31... Re2 {[%clk 0:00:33.2]} 32. Rxe2
{[%clk 0:00:08.8]} 32... Qxe2 {[%clk 0:00:32.5]} 33. Qxd5+ {[%clk 0:00:09.3]}
33... Kf6 {[%clk 0:00:32.4]} 34. Qd6+ {[%clk 0:00:09.5]} 34... Kf7 {[%clk
0:00:32.2]} 35. Qd7+ {[%clk 0:00:09.1]} 35... Kf6 {[%clk 0:00:32.4]} 36. Qd6+
{[%clk 0:00:06.4]} 36... Kf7 {[%clk 0:00:32.4]} 37. Qc7+ {[%clk 0:00:06.6]}
37... Kf6 {[%clk 0:00:32.3]} 38. Qb6+ {[%clk 0:00:06.9]} 38... Kg7 {[%clk
0:00:31.6]} 39. a5 {[%clk 0:00:06.7]} 39... g5 {[%clk 0:00:24.4]} 40. g3 {[%clk
0:00:05.4]} 40... Qe1+ {[%clk 0:00:21.3]} 41. Kg2 {[%clk 0:00:05.8]} 41... Qe4+
{[%clk 0:00:21.2]} 42. Kh2 {[%clk 0:00:06.2]} 42... Qe2 {[%clk 0:00:21.3]} 43.
Qc7+ {[%clk 0:00:05.1]} 43... Kf6 {[%clk 0:00:20.7]} 44. Qd6+ {[%clk 0:00:05.2]}
44... Kf7 {[%clk 0:00:20.5]} 45. Qd7+ {[%clk 0:00:04.9]} 45... Kf6 {[%clk
0:00:20.7]} 46. Qd4+ {[%clk 0:00:05.4]} 46... Kf7 {[%clk 0:00:20.4]} 47. Qd5+
{[%clk 0:00:02.4]} 47... Kf6 {[%clk 0:00:20.2]} 48. Qc5 {[%clk 0:00:02.8]} 48...
h6 {[%clk 0:00:17.5]} 49. Qc6+ {[%clk 0:00:02.7]} 49... Kg7 {[%clk 0:00:17.6]}
50. Kg2 {[%clk 0:00:02.7]} 50... Qe4+ {[%clk 0:00:15.2]} 51. Qxe4 {[%clk
0:00:02.8]} 51... fxe4 {[%clk 0:00:16.1]} 52. Kf1 {[%clk 0:00:02.1]} 52... Kf6
{[%clk 0:00:15.9]} 53. Ke2 {[%clk 0:00:02.4]} 53... Ke5 {[%clk 0:00:15.3]} 54.
Ke3 {[%clk 0:00:02.7]} 54... Kd5 {[%clk 0:00:15.5]} 55. h4 {[%clk 0:00:02.4]}
55... Ke5 {[%clk 0:00:12.2]} 56. hxg5 {[%clk 0:00:02.5]} 56... hxg5 {[%clk
0:00:13.1]} 57. f3 {[%clk 0:00:02.2]} 57... exf3 {[%clk 0:00:12.9]} 58. Kxf3
{[%clk 0:00:03.1]} 58... Kf5 {[%clk 0:00:13.4]} 59. g4+ {[%clk 0:00:03]} 59...
Ke5 {[%clk 0:00:13.4]} 60. Ke3 {[%clk 0:00:03.9]} 60... Kd5 {[%clk 0:00:13.7]}
61. Kd3 {[%clk 0:00:04.5]} 61... Ke5 {[%clk 0:00:12.2]} 62. Ke3 {[%clk
0:00:04.3]} 62... Kd5 {[%clk 0:00:12.4]} 63. Kd3 {[%clk 0:00:04.9]} 63... Ke5
{[%clk 0:00:13]} 64. Ke3 {[%clk 0:00:05.4]} 1/2-1/2

[Event "*** Titled Tuesday Blitz"]
[Site "Chess.com"]
[Date "2020.11.24"]
[Round "4"]
[White "Bathory44"]
[Black "barriochess"]
[Result "1/2-1/2"]
[WhiteElo "2556"]
[BlackElo "2373"]
[TimeControl "180+1"]
[EndTime "10:56:27 PST"]
[Termination "Game drawn - insufficient material"]

1. e4 {[%clk 0:03:00.9]} 1... d6 {[%clk 0:02:56.7]} 2. d4 {[%clk 0:03:00.4]}
2... Nf6 {[%clk 0:02:56]} 3. Nc3 {[%clk 0:03:00.5]} 3... g6 {[%clk 0:02:56]} 4.
f4 {[%clk 0:02:59.6]} 4... Bg7 {[%clk 0:02:55.2]} 5. Bd3 {[%clk 0:02:59.4]} 5...
O-O {[%clk 0:02:53.8]} 6. e5 {[%clk 0:02:55.8]} 6... Nfd7 {[%clk 0:02:53.1]} 7.
h4 {[%clk 0:02:52.5]} 7... c5 {[%clk 0:02:52.5]} 8. e6 {[%clk 0:02:52.2]} 8...
fxe6 {[%clk 0:02:43.2]} 9. h5 {[%clk 0:02:52.1]} 9... cxd4 {[%clk 0:02:41.7]}
10. Ne4 {[%clk 0:02:48.5]} 10... gxh5 {[%clk 0:02:37.5]} 11. Qxh5 {[%clk
0:02:45.4]} 11... h6 {[%clk 0:02:35.6]} 12. Nf3 {[%clk 0:02:38.5]} 12... Rf5
{[%clk 0:02:32.7]} 13. Qh3 {[%clk 0:02:35.6]} 13... Nc5 {[%clk 0:02:16.1]} 14.
Nxc5 {[%clk 0:02:07.6]} 14... Rxc5 {[%clk 0:02:09.7]} 15. f5 {[%clk 0:02:07.5]}
15... exf5 {[%clk 0:02:05.7]} 16. Bxh6 {[%clk 0:02:07]} 16... Qf8 {[%clk
0:01:54.5]} 17. Bd2 {[%clk 0:02:00.2]} 17... Qf7 {[%clk 0:01:37.5]} 18. Qh7+
{[%clk 0:01:53.4]} 18... Kf8 {[%clk 0:01:37.3]} 19. b4 {[%clk 0:01:38.2]} 19...
Re5+ {[%clk 0:01:31.1]} 20. Nxe5 {[%clk 0:01:37]} 20... dxe5 {[%clk 0:01:31.2]}
21. O-O {[%clk 0:01:30.9]} 21... e6 {[%clk 0:01:23]} 22. b5 {[%clk 0:01:30.8]}
22... Nd7 {[%clk 0:01:15.4]} 23. Bb4+ {[%clk 0:01:29.4]} 23... Ke8 {[%clk
0:01:15.2]} 24. Rae1 {[%clk 0:01:20.5]} 24... Nf6 {[%clk 0:01:11.8]} 25. Qh4
{[%clk 0:01:16.6]} 25... e4 {[%clk 0:01:03.3]} 26. Bxe4 {[%clk 0:01:15.2]} 26...
fxe4 {[%clk 0:01:02]} 27. Rxe4 {[%clk 0:01:15.3]} 27... Qh5 {[%clk 0:00:52.4]}
28. Rxd4 {[%clk 0:00:49.5]} 28... Qxh4 {[%clk 0:00:51.4]} 29. Rxh4 {[%clk
0:00:50.4]} 29... Nd5 {[%clk 0:00:46.2]} 30. Bc5 {[%clk 0:00:42.7]} 30... b6
{[%clk 0:00:44.2]} 31. Bd4 {[%clk 0:00:42.4]} 31... Bxd4+ {[%clk 0:00:43.4]} 32.
Rxd4 {[%clk 0:00:43.2]} 32... Bd7 {[%clk 0:00:41.5]} 33. c4 {[%clk 0:00:42.8]}
33... Ne7 {[%clk 0:00:39.4]} 34. g4 {[%clk 0:00:41.6]} 34... Ng6 {[%clk
0:00:33.8]} 35. Kg2 {[%clk 0:00:38.8]} 35... Ke7 {[%clk 0:00:32.5]} 36. Rh1
{[%clk 0:00:37]} 36... Rh8 {[%clk 0:00:25.3]} 37. Rxh8 {[%clk 0:00:36.2]} 37...
Nxh8 {[%clk 0:00:26.2]} 38. Kg3 {[%clk 0:00:30.8]} 38... e5 {[%clk 0:00:26.5]}
39. Rd5 {[%clk 0:00:23.2]} 39... Ng6 {[%clk 0:00:24.7]} 40. c5 {[%clk
0:00:21.1]} 40... Be6 {[%clk 0:00:22.7]} 41. Rd2 {[%clk 0:00:14.9]} 41... bxc5
{[%clk 0:00:22.2]} 42. a4 {[%clk 0:00:15.8]} 42... c4 {[%clk 0:00:20.4]} 43. a5
{[%clk 0:00:15.8]} 43... Bc8 {[%clk 0:00:14.5]} 44. Rc2 {[%clk 0:00:13.6]} 44...
Be6 {[%clk 0:00:13.8]} 45. b6 {[%clk 0:00:13.6]} 45... axb6 {[%clk 0:00:13.4]}
46. axb6 {[%clk 0:00:14.5]} 46... Kd7 {[%clk 0:00:14]} 47. b7 {[%clk 0:00:12.3]}
47... Kc7 {[%clk 0:00:13.9]} 48. Rb2 {[%clk 0:00:12.8]} 48... Kb8 {[%clk
0:00:14.4]} 49. Rb6 {[%clk 0:00:13.4]} 49... Nf8 {[%clk 0:00:14.6]} 50. g5
{[%clk 0:00:13.2]} 50... Bd5 {[%clk 0:00:14.4]} 51. g6 {[%clk 0:00:12]} 51... c3
{[%clk 0:00:13.7]} 52. g7 {[%clk 0:00:11.8]} 52... Nd7 {[%clk 0:00:14]} 53. Rd6
{[%clk 0:00:11.3]} 53... c2 {[%clk 0:00:12.7]} 54. Rxd5 {[%clk 0:00:11.5]} 54...
Nf6 {[%clk 0:00:12.5]} 55. g8=Q+ {[%clk 0:00:12.4]} 55... Nxg8 {[%clk
0:00:11.9]} 56. Rc5 {[%clk 0:00:13.3]} 56... Kxb7 {[%clk 0:00:12]} 57. Rxc2
{[%clk 0:00:13.6]} 57... Nf6 {[%clk 0:00:12.7]} 58. Re2 {[%clk 0:00:13.3]} 58...
Nd7 {[%clk 0:00:10.5]} 59. Kf3 {[%clk 0:00:13.6]} 59... Kc6 {[%clk 0:00:11.4]}
60. Ke3 {[%clk 0:00:14]} 60... Kd5 {[%clk 0:00:10.4]} 61. Rd2+ {[%clk
0:00:14.9]} 61... Ke6 {[%clk 0:00:10.6]} 62. Ra2 {[%clk 0:00:14.2]} 62... Nf6
{[%clk 0:00:09.8]} 63. Ra6+ {[%clk 0:00:13.4]} 63... Kf5 {[%clk 0:00:10]} 64.
Ra5 {[%clk 0:00:09.9]} 64... Ng4+ {[%clk 0:00:09.7]} 65. Ke2 {[%clk 0:00:09]}
65... Nf6 {[%clk 0:00:10]} 66. Rxe5+ {[%clk 0:00:09.8]} 66... Kxe5 {[%clk
0:00:09.9]} 1/2-1/2

[Event "*** Titled Tuesday Blitz"]
[Site "Chess.com"]
[Date "2020.11.24"]
[Round "4"]
[White "Arseniy_Nesterov"]
[Black "hansen"]
[Result "1/2-1/2"]
[WhiteElo "2798"]
[BlackElo "2934"]
[TimeControl "180+1"]
[EndTime "10:56:33 PST"]
[Termination "Game drawn by repetition"]

1. d4 {[%clk 0:03:00.9]} 1... Nf6 {[%clk 0:02:59.3]} 2. c4 {[%clk 0:03:01.6]}
2... e6 {[%clk 0:02:59.4]} 3. Nf3 {[%clk 0:03:02]} 3... b6 {[%clk 0:02:59.3]} 4.
a3 {[%clk 0:03:02.3]} 4... Bb7 {[%clk 0:02:59.1]} 5. Nc3 {[%clk 0:03:02]} 5...
d5 {[%clk 0:02:53.4]} 6. cxd5 {[%clk 0:03:01.9]} 6... Nxd5 {[%clk 0:02:54.2]} 7.
Qc2 {[%clk 0:03:02.1]} 7... Nd7 {[%clk 0:02:51.8]} 8. Nxd5 {[%clk 0:02:55]} 8...
Bxd5 {[%clk 0:02:45.9]} 9. e4 {[%clk 0:02:53.4]} 9... Bb7 {[%clk 0:02:46.5]} 10.
Bg5 {[%clk 0:02:47.1]} 10... Qc8 {[%clk 0:02:30.5]} 11. Bc4 {[%clk 0:02:19.4]}
11... h6 {[%clk 0:02:28]} 12. Bh4 {[%clk 0:02:16.8]} 12... Bd6 {[%clk
0:02:13.1]} 13. O-O {[%clk 0:02:10]} 13... a6 {[%clk 0:01:58.2]} 14. e5 {[%clk
0:01:50.8]} 14... Be7 {[%clk 0:01:57.7]} 15. Bxe6 {[%clk 0:01:01.5]} 15... O-O
{[%clk 0:01:48.8]} 16. Bxe7 {[%clk 0:01:00.1]} 16... fxe6 {[%clk 0:01:45.7]} 17.
Bxf8 {[%clk 0:00:59.3]} 17... Nxf8 {[%clk 0:01:25.2]} 18. Nd2 {[%clk 0:00:57.1]}
18... Qd8 {[%clk 0:01:24.5]} 19. Qc3 {[%clk 0:00:54.1]} 19... Ng6 {[%clk
0:01:21]} 20. Qe3 {[%clk 0:00:47.3]} 20... Nh4 {[%clk 0:01:19.8]} 21. f3 {[%clk
0:00:45.8]} 21... Nf5 {[%clk 0:01:18.9]} 22. Qf2 {[%clk 0:00:35.5]} 22... Nxd4
{[%clk 0:01:19]} 23. Rad1 {[%clk 0:00:32.8]} 23... Nf5 {[%clk 0:01:18.9]} 24.
Ne4 {[%clk 0:00:30.9]} 24... Qe8 {[%clk 0:01:15.2]} 25. Ng3 {[%clk 0:00:30.2]}
25... Ne7 {[%clk 0:01:12.9]} 26. Qd4 {[%clk 0:00:27.9]} 26... Bd5 {[%clk
0:01:10.2]} 27. Qc3 {[%clk 0:00:24.8]} 27... c5 {[%clk 0:01:09.7]} 28. f4 {[%clk
0:00:23.2]} 28... g6 {[%clk 0:01:07]} 29. Qc2 {[%clk 0:00:20.5]} 29... Qc6
{[%clk 0:00:58.1]} 30. Rfe1 {[%clk 0:00:20.5]} 30... Rf8 {[%clk 0:00:56.4]} 31.
Rf1 {[%clk 0:00:12.3]} 31... h5 {[%clk 0:00:51.5]} 32. Rde1 {[%clk 0:00:11.5]}
32... Nf5 {[%clk 0:00:41.2]} 33. Nxf5 {[%clk 0:00:08.8]} 33... Rxf5 {[%clk
0:00:34.9]} 34. Re3 {[%clk 0:00:07.8]} 34... c4 {[%clk 0:00:34.4]} 35. Rg3
{[%clk 0:00:07.4]} 35... Kf7 {[%clk 0:00:34.7]} 36. Rg5 {[%clk 0:00:06.5]} 36...
b5 {[%clk 0:00:17.5]} 37. Rxf5+ {[%clk 0:00:06.4]} 37... gxf5 {[%clk 0:00:18.1]}
38. Qe2 {[%clk 0:00:06.2]} 38... Kg6 {[%clk 0:00:12.9]} 39. Qf2 {[%clk
0:00:04.7]} 39... Kh7 {[%clk 0:00:08.1]} 40. h3 {[%clk 0:00:02.6]} 40... Qe8
{[%clk 0:00:05.1]} 41. Qg3 {[%clk 0:00:02.9]} 41... a5 {[%clk 0:00:04.7]} 42.
Rf2 {[%clk 0:00:03.2]} 42... b4 {[%clk 0:00:04.5]} 43. axb4 {[%clk 0:00:03.7]}
43... axb4 {[%clk 0:00:05.4]} 44. Qe3 {[%clk 0:00:04.2]} 44... Qc8 {[%clk
0:00:04.6]} 45. Qe2 {[%clk 0:00:04.5]} 45... Kh6 {[%clk 0:00:04.2]} 46. Qe1
{[%clk 0:00:04.4]} 46... Qc5 {[%clk 0:00:04]} 47. Kh2 {[%clk 0:00:03.9]} 47...
Be4 {[%clk 0:00:04.2]} 48. Rd2 {[%clk 0:00:02.7]} 48... Bd3 {[%clk 0:00:03.7]}
49. Qh4 {[%clk 0:00:02.2]} 49... b3 {[%clk 0:00:03.3]} 50. Qg5+ {[%clk
0:00:02.7]} 50... Kh7 {[%clk 0:00:03.7]} 51. Qxh5+ {[%clk 0:00:03.4]} 51... Kg7
{[%clk 0:00:04.4]} 52. Qg5+ {[%clk 0:00:04.3]} 52... Kh7 {[%clk 0:00:04.5]} 53.
Qh5+ {[%clk 0:00:04.1]} 53... Kg7 {[%clk 0:00:04.9]} 54. Qg5+ {[%clk 0:00:03.9]}
54... Kh7 {[%clk 0:00:05.5]} 55. Qh4+ {[%clk 0:00:04.2]} 55... Kg7 {[%clk
0:00:05.5]} 56. Qg3+ {[%clk 0:00:04.9]} 56... Kh7 {[%clk 0:00:04.9]} 57. Rxd3
{[%clk 0:00:05.5]} 57... cxd3 {[%clk 0:00:05.3]} 58. Qxd3 {[%clk 0:00:06.4]}
58... Qb4 {[%clk 0:00:05.8]} 59. Qd7+ {[%clk 0:00:06.2]} 59... Kh8 {[%clk
0:00:05.5]} 60. Qd8+ {[%clk 0:00:05.5]} 60... Kh7 {[%clk 0:00:06.1]} 61. Qf6
{[%clk 0:00:05.7]} 61... Qxf4+ {[%clk 0:00:05.8]} 62. Kh1 {[%clk 0:00:05.8]}
62... Qc1+ {[%clk 0:00:05.2]} 63. Kh2 {[%clk 0:00:06.4]} 63... Qf4+ {[%clk
0:00:05.5]} 64. Kg1 {[%clk 0:00:06.9]} 64... Qd4+ {[%clk 0:00:04.8]} 65. Kh2
{[%clk 0:00:06.7]} 65... Qf4+ {[%clk 0:00:03.5]} 1/2-1/2